bitfinex/quotes_ETHUSD_20241120
["timestamp","ask_amount","ask_price","bid_price","bid_amount"]
[1732067487050,0.7715,3096.4,3095.9,0.0794128]
[1732067487245,0.7715,3096.4,3095.1,0.85149746]
[1732067487246,0.7715,3096.4,3095.2,0.05067551]
[1732067487448,0.7715,3096.3,3096.0,0.0794128]
[1732067487778,0.0807436,3096.7,3096.1,0.0794128]
[1732067487779,0.7715,3096.2,3096.1,0.0794128]
[1732067488261,0.7715,3096.2,3095.5,3.0]
[1732067488575,0.7715,3096.2,3095.6,0.4564328]
[1732067488778,0.7715,3096.2,3095.6,3.0794128]
[1732067488989,0.7715,3096.2,3095.6,0.0794128]
[1732067491969,0.7715,3096.2,3095.6,0.4016128]
[1732067492880,0.7715,3096.2,3095.6,0.0794128]
[1732067493184,0.820923,3096.8,3095.6,0.0794128]
[1732067493185,0.7715,3096.0,3095.7,3.0]
[1732067493541,0.7715,3096.0,3095.8,0.07941931]
[1732067493740,0.7715,3096.0,3095.5,3.0]
[1732067493982,0.7715,3096.7,3095.8,3.0]
[1732067494141,0.7715,3096.7,3095.9,0.05066594]
[1732067494345,0.7715,3096.7,3096.0,3.07942582]
[1732067494540,0.7715,3096.7,3096.0,0.07942582]
[1732067494765,0.0807401,3096.6,3096.0,3.0]
[1732067494965,0.0807401,3096.6,3096.1,0.07942582]
[1732067495170,0.08074009,3096.6,3095.8,0.7702]
[1732067495367,0.08074009,3096.6,3096.0,3.0]
[1732067495537,0.7715,3096.5,3095.8,3.0]
[1732067495754,0.7715,3096.5,3095.9,0.07940874]
[1732067496098,0.7715,3096.5,3095.5,0.3222]
[1732067496384,0.7715,3096.5,3095.6,0.05066708]
[1732067496586,0.7715,3096.5,3095.6,0.13003435]
[1732067497588,0.7715,3096.5,3095.9,3.0]
[1732067497759,0.7715,3096.9,3096.2,3.0]
[1732067498083,0.7715,3096.9,3095.7,0.34425209]
[1732067498084,0.7715,3096.9,3096.3,0.12999356]
[1732067498261,0.7715,3096.9,3096.4,0.7702]
[1732067498444,0.7715,3096.9,3096.5,0.05063084]
[1732067498680,0.7715,3096.9,3096.5,0.07933475]
[1732067498913,0.820923,3097.7,3096.6,3.0506249]
[1732067498914,0.7715,3097.6,3096.6,3.0506249]
[1732067499095,0.7715,3097.6,3096.8,3.0]
[1732067499398,0.7715,3097.6,3096.9,0.12989629]
[1732067499585,0.7715,3097.6,3096.9,3.07929248]
[1732067500010,0.7715,3097.6,3097.0,0.86289202]
[1732067500210,0.7702,3098.3,3097.3,3.0]
[1732067500211,0.7793,3098.2,3097.3,3.0]
[1732067500421,0.7793,3098.2,3097.1,0.07925917]
[1732067500585,0.7793,3098.2,3097.2,0.05057213]
[1732067500984,0.7793,3098.2,3097.4,3.0]
[1732067501426,0.7793,3098.2,3097.2,0.05057213]
[1732067501726,0.7793,3098.2,3097.4,3.0]
[1732067501882,0.7793,3098.2,3097.5,3.07925917]
[1732067502084,0.7793,3098.2,3097.5,0.07925917]
[1732067502283,0.7793,3098.2,3097.5,3.0]
[1732067502528,0.7793,3098.2,3097.6,0.94213128]
[1732067502985,0.7793,3098.2,3097.9,3.0]
[1732067503497,0.7793,3098.2,3098.0,0.0792283]
[1732067504690,0.7793,3098.2,3097.7,3.0]
[1732067505035,0.7793,3098.2,3097.8,0.0792153]
[1732067505386,0.7793,3098.2,3097.7,3.0]
[1732067505581,0.7793,3098.2,3097.8,0.07921855]
[1732067505797,0.7793,3098.2,3097.3,0.05055624]
[1732067506095,0.7793,3098.2,3097.7,3.0]
[1732067506437,0.7793,3098.2,3097.8,0.07921855]
[1732067506810,0.7793,3098.2,3097.3,0.05055624]
[1732067507345,0.7793,3098.2,3097.7,3.0]
[1732067507639,0.7793,3098.2,3097.3,0.05055624]
[1732067507836,0.7793,3098.2,3097.8,0.07921855]
[1732067507995,0.7793,3098.2,3097.7,3.0]
[1732067508191,0.7793,3098.2,3097.9,0.07921855]
[1732067508495,0.7793,3098.2,3097.8,0.0790885]
[1732067508701,0.7793,3098.2,3097.7,3.3]
[1732067508932,0.7793,3098.5,3098.0,3.0]
[1732067509097,0.7793,3099.5,3098.1,0.07908606]
[1732067509297,0.7793,3099.8,3098.2,0.05052487]
[1732067509643,0.7793,3099.3,3098.0,0.05052471]
[1732067509937,0.7793,3099.3,3098.0,3.05052471]
[1732067510340,0.7793,3099.3,3098.1,0.07908606]
[1732067510694,0.7793,3099.3,3098.4,3.0]
[1732067511133,0.7793,3099.3,3098.5,0.07908606]
[1732067511345,0.7793,3099.3,3098.4,3.0]
[1732067511508,0.7793,3099.3,3098.5,0.07908606]
[1732067511707,0.7793,3099.3,3098.2,0.8123]
[1732067511923,0.7793,3099.3,3098.3,0.07908606]
[1732067512654,0.7793,3099.3,3098.4,3.0]
[1732067512803,0.7793,3099.1,3098.4,3.0]
[1732067513007,0.7793,3098.9,3097.7,0.8123]
[1732067513203,0.7793,3098.9,3098.5,0.07908606]
[1732067513457,0.7793,3098.9,3097.8,0.05052049]
[1732067513656,0.7793,3098.9,3098.6,0.07908606]
[1732067513959,0.7793,3098.9,3098.7,0.07908606]
[1732067514112,0.7793,3098.9,3098.4,3.0]
[1732067514316,0.7793,3098.9,3098.5,0.07908606]
[1732067514516,0.7793,3098.9,3098.4,3.0]
[1732067514751,0.7793,3098.9,3098.5,0.07908606]
[1732067515364,0.7793,3098.9,3097.8,0.05052049]
[1732067515568,0.7793,3098.9,3098.4,3.0]
[1732067516047,0.7793,3098.9,3098.5,0.07908606]
[1732067516612,0.7793,3098.9,3098.2,3.0]
[1732067517029,0.7793,3098.9,3098.3,0.07908606]
[1732067517445,0.7793,3098.9,3097.8,0.05052825]
[1732067517643,0.7793,3098.9,3098.4,0.07908606]
[1732067517854,0.7793,3098.9,3098.2,3.0]
[1732067518020,0.7793,3098.9,3098.5,0.07908606]
[1732067518220,0.7793,3098.9,3098.2,3.0]
[1732067518462,0.7793,3098.9,3098.6,0.07908606]
[1732067518674,0.7793,3098.9,3098.2,3.0]
[1732067518854,0.7793,3098.9,3097.8,0.05052825]
[1732067519319,0.7793,3098.9,3098.2,3.0]
[1732067519519,0.7793,3098.9,3097.8,0.05052825]
[1732067519755,0.7793,3098.9,3098.2,3.0]
[1732067519964,0.7793,3098.9,3097.7,0.8123]
[1732067520164,0.7793,3098.9,3098.2,3.0]
[1732067520367,0.7793,3098.7,3098.2,3.0]
[1732067520659,0.7793,3098.5,3098.3,0.07902353]
[1732067520964,0.7793,3098.5,3097.5,0.05054899]
[1732067521262,0.7793,3098.5,3097.9,3.0]
[1732067521466,0.7793,3098.5,3097.9,3.3]
[1732067521766,0.7793,3098.5,3098.0,0.07902434]
[1732067522075,0.55,3099.2,3098.1,3.05053058]
[1732067522376,0.7793,3099.1,3098.1,3.05053058]
[1732067522532,0.7793,3099.1,3098.2,0.07902434]
[1732067523224,0.85997972,3099.0,3098.2,0.07902434]
[1732067523639,0.85997972,3099.0,3097.8,0.8123]
[1732067523840,0.7793,3099.0,3098.3,0.07902434]
[1732067524033,0.7793,3099.0,3097.9,0.05052219]
[1732067524857,0.7793,3099.0,3098.0,3.07902434]
[1732067525061,0.7793,3099.0,3098.0,0.07902434]
[1732067525460,0.08067968,3098.9,3098.0,3.07902434]
[1732067525631,0.7793,3098.8,3098.1,3.0]
[1732067526150,0.7793,3098.8,3098.2,0.07901298]
[1732067527131,0.7793,3098.8,3097.6,0.05052211]
[1732067527538,0.7793,3098.8,3097.7,0.0790146]
[1732067527758,0.55,3099.2,3097.7,0.0790146]
[1732067527759,0.08067966,3098.7,3097.7,0.0790146]
[1732067527962,0.55,3099.2,3097.7,0.0790146]
[1732067527963,0.7793,3098.6,3097.7,0.05053267]
[1732067528152,0.7793,3098.6,3097.8,0.0790146]
[1732067528550,0.7793,3098.6,3098.1,3.0]
[1732067528954,0.7793,3098.6,3098.2,0.07901622]
[1732067529161,0.7793,3098.6,3098.1,3.0]
[1732067529368,0.7793,3098.6,3098.2,0.07901622]
[1732067529570,0.7793,3098.6,3098.2,0.43745045]
[1732067529909,0.7719,3099.4,3098.2,0.07901622]
[1732067530051,0.7719,3099.4,3098.2,0.1295245]
[1732067531089,0.7719,3099.4,3098.3,1.12955209]
[1732067531250,0.7719,3099.4,3098.4,0.05047772]
[1732067531584,0.7719,3099.4,3099.0,3.0]
[1732067531754,0.7719,3099.4,3099.1,0.07897643]
[1732067532510,0.7719,3100.5,3099.1,0.07897643]
[1732067532737,0.7719,3100.3,3099.2,0.3222]
[1732067532871,0.7719,3100.1,3098.9,1.1075]
[1732067533071,0.7719,3100.1,3099.3,0.07897399]
[1732067533309,0.7719,3100.1,3099.3,3.0]
[1732067533522,0.7719,3100.1,3099.4,0.07897399]
[1732067533877,0.7719,3100.1,3099.3,3.0]
[1732067534080,0.7719,3100.1,3099.5,0.07897399]
[1732067534308,0.7719,3100.1,3099.3,0.05045209]
[1732067534617,0.7819,3100.1,3098.5,2.75934525]
[1732067534820,0.7819,3100.1,3099.4,0.07897399]
[1732067535018,0.7819,3100.1,3098.8,0.3222]
[1732067535177,0.7819,3100.1,3099.5,0.07897399]
[1732067535378,0.7819,3100.1,3098.8,0.3222]
[1732067535703,0.7819,3100.1,3098.9,0.40117399]
[1732067537615,0.7819,3100.1,3099.0,0.7853]
[1732067538320,0.7819,3100.1,3099.1,0.07897399]
[1732067540131,0.7719,3100.1,3099.1,0.07897399]
[1732067541893,0.7719,3100.6,3100.0,3.0]
[1732067542137,0.7719,3100.6,3100.1,0.3]
[1732067542449,0.7719,3100.6,3100.1,0.07890987]
[1732067543154,0.85253492,3100.5,3099.1,0.7853]
[1732067543440,0.85253492,3100.5,3100.0,3.0]
[1732067543809,0.85253492,3100.5,3099.1,0.8649533]
[1732067544014,0.7719,3100.3,3099.2,0.07890987]
[1732067546520,0.55,3100.4,3099.2,0.07890987]
[1732067546521,0.8233,3100.1,3099.2,0.07890987]
[1732067547112,0.8233,3100.1,3098.9,0.7936]
[1732067547582,0.8233,3100.1,3099.0,0.07877757]
[1732067548438,0.8233,3100.1,3099.5,3.0]
[1732067548959,0.8233,3100.1,3099.6,0.07877757]
[1732067549167,0.8233,3100.1,3099.6,3.0]
[1732067549350,0.8233,3100.1,3098.9,1.13785209]
[1732067549351,0.8233,3099.9,3099.7,0.07877757]
[1732067549538,0.02,3100.0,3098.8,0.3222]
[1732067549539,0.8333,3099.8,3098.8,0.3222]
[1732067550043,0.8333,3099.8,3098.9,0.07877757]
[1732067550834,0.8233,3099.8,3099.1,3.0]
[1732067551184,0.8233,3099.8,3099.2,0.40085757]
[1732067553747,0.8233,3099.8,3099.5,3.0]
[1732067553958,0.8233,3099.8,3099.0,0.3222]
[1732067554156,0.8233,3099.8,3099.5,3.0]
[1732067554354,0.8233,3099.8,3099.6,0.3]
[1732067554548,0.8233,3099.8,3099.7,0.07865757]
[1732067554777,0.8233,3099.8,3099.1,0.3222]
[1732067554983,0.8233,3099.8,3099.2,0.07865757]
[1732067555206,0.8233,3099.8,3099.5,3.0]
[1732067555367,0.8233,3099.8,3098.9,0.3222]
[1732067555570,0.8233,3099.8,3099.0,0.07865757]
[1732067555763,0.01,3099.7,3099.0,0.07865757]
[1732067555968,0.8155,3099.6,3099.0,0.07865757]
[1732067556363,0.8155,3099.6,3098.8,0.3222]
[1732067556592,0.8155,3099.6,3098.9,0.07868677]
[1732067556772,0.8155,3099.0,3098.3,0.3222]
[1732067556987,0.8155,3099.0,3098.4,0.07868677]
[1732067558022,0.8155,3099.0,3098.5,0.07868677]
[1732067558230,0.8155,3099.0,3098.2,0.3222]
[1732067558379,0.01,3098.9,3098.6,0.07868677]
[1732067558739,0.8255,3098.7,3097.7,0.3222]
[1732067559807,0.8155,3098.7,3097.8,0.66645209]
[1732067562720,0.8155,3098.7,3097.8,0.34425209]
[1732067564426,0.8155,3098.7,3097.9,0.789]
[1732067564721,0.8155,3098.7,3098.0,0.34425209]
[1732067566013,0.8155,3098.7,3098.4,3.0]
[1732067566320,0.8155,3098.7,3098.4,0.3]
[1732067566527,0.8279,3099.2,3098.0,0.34425209]
[1732067566887,0.01,3099.1,3098.0,0.34425209]
[1732067567086,0.01,3099.1,3097.8,0.10084959]
[1732067567087,0.8279,3099.0,3097.8,0.10084959]
[1732067567287,0.8279,3099.0,3097.4,0.34425209]
[1732067568064,0.08067368,3099.9,3097.4,0.34425209]
[1732067568065,0.01,3098.7,3097.4,0.34425209]
[1732067568353,0.01,3098.7,3097.4,0.57065406]
[1732067568354,0.8279,3098.6,3097.4,0.57065406]
[1732067568645,0.8279,3098.6,3097.5,0.07365389]
[1732067569349,0.8379,3098.6,3097.5,0.07365389]
[1732067570131,0.8279,3098.3,3097.5,0.07365389]
[1732067570459,0.8279,3098.1,3097.9,3.0]
[1732067570662,0.8279,3098.1,3097.6,0.07367988]
[1732067570968,0.56,3098.5,3096.4,3.385]
[1732067570969,0.7538,3097.7,3096.4,0.3222]
[1732067571261,0.7538,3097.7,3096.4,0.66645209]
[1732067572132,0.7538,3097.7,3096.5,0.34425209]
[1732067572331,0.7538,3097.7,3096.6,0.7719]
[1732067572638,0.7538,3098.1,3097.6,3.0]
[1732067572834,0.7538,3098.1,3097.7,0.3]
[1732067573162,0.7538,3098.1,3096.8,4.0941]
[1732067573360,0.7538,3098.1,3096.9,0.36145802]
[1732067573524,0.7538,3098.1,3096.9,0.70571011]
[1732067574274,0.7538,3098.1,3096.9,1.02791011]
[1732067574422,0.7538,3098.1,3097.0,0.47998101]
[1732067574619,0.7538,3098.1,3097.2,1.0941]
[1732067574858,0.7538,3098.1,3097.3,0.66645209]
[1732067575039,0.7538,3098.1,3097.3,0.3222]
[1732067575769,0.7538,3098.1,3097.9,3.0]
[1732067576056,0.7538,3098.1,3097.3,0.3222]
[1732067576631,0.7538,3098.1,3097.9,3.0]
[1732067577858,0.7538,3098.1,3097.3,0.3222]
[1732067578863,0.7538,3098.1,3097.9,3.0]
[1732067579076,0.7538,3098.1,3097.3,0.3222]
[1732067579465,0.7538,3098.1,3097.3,0.66645209]
[1732067581197,0.7538,3098.1,3097.1,0.3222]
[1732067581388,0.7538,3098.1,3097.3,3.3222]
[1732067581576,0.7538,3098.1,3097.3,0.3222]
[1732067581765,0.7538,3098.1,3096.9,0.34425209]
[1732067581966,0.7538,3098.1,3096.9,0.66645209]
[1732067582363,0.7538,3098.1,3096.9,1.20629167]
[1732067582564,0.7638,3098.1,3096.9,1.20629167]
[1732067582769,0.7538,3098.1,3096.9,1.56774969]
[1732067583087,0.7538,3098.1,3097.1,0.3222]
[1732067583291,0.7638,3098.1,3097.1,0.3222]
[1732067583596,0.7638,3098.1,3097.2,0.39385472]
[1732067583597,0.7538,3098.1,3097.2,0.39385472]
[1732067583768,0.7638,3098.1,3097.2,0.39385472]
[1732067584103,0.8444958,3098.0,3097.2,0.07165472]
[1732067584269,0.01,3097.7,3097.2,0.07165472]
[1732067584459,0.01,3097.7,3096.4,0.34425209]
[1732067584460,0.7538,3097.6,3096.5,0.3222]
[1732067584662,0.7538,3097.4,3097.3,0.06926622]
[1732067585003,0.7538,3097.4,3096.5,0.3222]
[1732067585211,0.7538,3097.4,3096.6,0.06926622]
[1732067585419,0.7538,3097.4,3096.7,0.3222]
[1732067585781,0.7538,3097.4,3096.8,0.39146622]
[1732067587422,0.7638,3097.4,3096.8,0.39146622]
[1732067587583,0.7538,3097.4,3096.8,0.39146622]
[1732067587794,0.01,3096.9,3096.8,0.06926622]
[1732067588024,0.01,3096.9,3094.8,0.4406355]
[1732067588025,0.7538,3096.5,3094.9,0.7719]
[1732067588181,0.01,3096.4,3095.0,0.16722658]
[1732067588379,0.7638,3096.4,3095.0,3.45195735]
[1732067588615,0.7638,3096.4,3095.1,3.80738573]
[1732067588616,0.7538,3096.4,3095.1,3.80738573]
[1732067588777,0.7538,3096.4,3095.4,0.3222]
[1732067588978,0.7538,3096.4,3095.6,3.7072]
[1732067589282,0.7538,3096.4,3095.5,0.7719]
[1732067589283,0.7538,3096.7,3095.8,3.7072]
[1732067589508,0.7538,3096.7,3095.7,0.50800341]
[1732067589509,0.7538,3096.7,3096.0,0.3222]
[1732067589976,0.7538,3096.7,3096.1,0.06009341]
[1732067590781,0.7538,3096.7,3095.7,3.3222]
[1732067590978,0.7538,3096.7,3095.9,0.3222]
[1732067591183,0.7538,3096.7,3096.1,0.3222]
[1732067591725,0.7538,3096.7,3096.2,0.06009341]
[1732067593180,0.7538,3096.7,3096.5,3.0]
[1732067593556,0.7538,3096.7,3096.1,1.0739]
[1732067593750,0.813,3097.3,3096.6,0.06009341]
[1732067594082,0.813,3097.3,3096.7,0.06009341]
[1732067594442,0.813,3097.3,3095.7,0.30533543]
[1732067594443,0.01,3097.2,3095.7,0.3222]
[1732067594681,0.813,3097.1,3096.8,0.06009341]
[1732067594980,0.813,3097.1,3095.7,1.1733476]
[1732067595181,0.813,3097.1,3096.5,3.0]
[1732067595540,0.813,3097.1,3095.7,1.1733476]
[1732067595876,0.813,3097.1,3096.5,3.0]
[1732067596186,0.01,3097.0,3095.8,0.06009341]
[1732067596356,0.823,3097.0,3095.7,1.1733476]
[1732067596566,0.10072586,3098.1,3095.7,1.1733476]
[1732067596567,0.02,3096.8,3095.7,1.49123476]
[1732067596768,0.02,3096.8,3095.5,0.3222]
[1732067596769,0.813,3096.7,3095.5,0.3222]
[1732067596990,0.01,3096.6,3095.8,0.06009341]
[1732067597291,0.01,3096.6,3095.3,0.09877357]
[1732067597292,0.823,3096.5,3095.3,0.09877357]
[1732067597594,0.813,3096.2,3095.9,0.06009341]
[1732067597759,0.813,3096.2,3095.2,0.3222]
[1732067597760,0.813,3096.2,3095.2,0.10176975]
[1732067597955,0.813,3096.2,3095.2,0.7517]
[1732067598157,0.813,3096.2,3095.3,0.06009341]
[1732067599197,0.813,3096.2,3095.7,3.0]
[1732067599589,0.813,3096.2,3095.2,3.0]
[1732067599883,0.813,3096.2,3095.2,3.71367]
[1732067600223,0.813,3096.2,3095.3,0.06009341]
[1732067601004,0.813,3096.2,3095.7,3.0]
[1732067601169,0.813,3096.2,3095.0,3.0]
[1732067601372,0.813,3096.2,3095.8,0.06034914]
[1732067601558,0.01,3096.7,3095.5,0.7517]
[1732067601559,0.813,3096.6,3095.9,0.06034833]
[1732067601973,0.813,3096.6,3095.5,3.7517]
[1732067602298,0.813,3096.6,3095.6,0.74589]
[1732067602502,0.813,3096.6,3095.6,0.80623833]
[1732067603198,0.813,3096.6,3096.0,3.0]
[1732067603575,0.813,3096.6,3095.7,6.385]
[1732067603782,0.813,3096.6,3096.2,3.0]
[1732067604515,0.813,3096.6,3096.3,0.06034833]
[1732067604875,0.01,3098.2,3096.3,0.06034833]
[1732067604876,0.8219,3096.8,3096.3,0.06034833]
[1732067605295,0.8219,3096.8,3096.6,3.0]
[1732067605506,0.8219,3096.8,3096.1,0.8134]
[1732067605710,0.8219,3096.8,3096.7,0.06031109]
[1732067605885,0.8219,3096.8,3096.2,0.41356]
[1732067606092,0.8219,3096.8,3096.7,0.06031109]
[1732067606296,0.8219,3096.8,3096.2,0.41356]
[1732067607194,0.8219,3096.8,3096.3,0.0603038]
[1732067607675,0.8219,3096.8,3096.3,0.3825038]
[1732067608787,0.8219,3096.8,3096.3,0.0603038]
[1732067610313,0.8219,3096.8,3096.5,3.3222]
[1732067610679,0.8219,3096.8,3096.5,0.3222]
[1732067610878,0.8219,3096.8,3096.6,0.0603038]
[1732067611627,0.8219,3096.8,3096.2,0.3222]
[1732067611789,0.8219,3096.8,3096.3,0.0603038]
[1732067612285,0.8219,3096.6,3096.3,0.0603038]
[1732067612491,0.01,3096.5,3096.3,0.0603038]
[1732067613015,0.01,3096.5,3095.9,0.3222]
[1732067613197,0.8219,3096.6,3096.4,0.0602609]
[1732067613388,0.8219,3096.6,3095.9,0.3222]
[1732067613589,0.8219,3096.6,3096.1,3.7072]
[1732067613789,0.8219,3096.6,3096.3,0.3222]
[1732067614214,0.8219,3097.1,3096.4,0.0602609]
[1732067616624,0.8219,3096.9,3096.6,3.0]
[1732067616808,0.8319,3096.9,3096.4,0.0602609]
[1732067617005,0.8319,3096.9,3096.3,0.3222]
[1732067617511,0.8319,3096.9,3096.4,0.0602609]
[1732067618920,0.8219,3096.9,3096.2,0.3222]
[1732067619126,0.8219,3096.9,3096.5,0.0602609]
[1732067619326,0.8219,3096.9,3096.2,0.3222]
[1732067619502,0.8219,3096.9,3096.6,0.0602609]
[1732067619695,0.8219,3096.9,3096.2,0.3222]
[1732067619896,0.8219,3096.9,3096.7,0.0602609]
[1732067620133,0.8219,3096.9,3096.4,3.0]
[1732067620287,0.8219,3096.9,3096.8,0.0602609]
[1732067620491,0.8219,3096.9,3096.4,3.0]
[1732067620713,0.8219,3096.9,3096.3,0.3222]
[1732067620714,0.8216,3096.6,3096.3,0.3222]
[1732067621048,0.8216,3096.6,3096.4,3.0]
[1732067621530,0.8216,3096.6,3095.6,3.3222]
[1732067621737,0.8216,3096.6,3095.8,1.0988]
[1732067621891,0.8216,3096.6,3096.4,3.0]
[1732067622234,0.8216,3096.6,3096.0,0.3222]
[1732067623001,0.8216,3096.6,3096.5,3.0]
[1732067623590,0.8216,3096.6,3095.6,3.3222]
[1732067623898,0.8216,3096.6,3095.6,4.08072589]
[1732067626126,0.8216,3096.6,3095.6,7.46572589]
[1732067626332,0.8216,3096.6,3096.0,0.3222]
[1732067626729,0.8216,3096.6,3096.1,8.0338]
[1732067627027,0.8216,3096.6,3096.2,3.0]
[1732067627802,0.01,3097.0,3096.3,0.3222]
[1732067628019,0.8216,3096.9,3096.3,0.3222]
[1732067628205,0.8216,3096.9,3096.4,0.65442]
[1732067628630,0.8216,3096.9,3096.5,0.06027224]
[1732067629628,0.8216,3096.9,3096.3,0.3222]
[1732067629830,0.8216,3096.9,3096.6,0.06027224]
[1732067629994,0.8216,3096.9,3096.3,0.3222]
[1732067630345,0.8216,3096.9,3096.0,0.3222]
[1732067630996,0.8216,3096.9,3096.1,0.06027224]
[1732067631518,0.8216,3096.9,3096.1,0.38247224]
[1732067632641,0.8216,3096.5,3096.1,0.06027224]
[1732067632997,0.8216,3096.5,3095.5,3.3222]
[1732067633220,0.8216,3096.5,3096.2,0.06027224]
[1732067633510,0.8216,3096.5,3096.3,0.06027224]
[1732067633917,0.8216,3096.5,3095.7,4.0988]
[1732067634124,0.8216,3096.5,3096.4,0.06027707]
[1732067634319,0.8216,3096.5,3095.7,4.0988]
[1732067634642,0.8216,3096.5,3095.8,1.07058]
[1732067634796,0.8216,3096.5,3095.8,0.38247707]
[1732067635148,0.8216,3096.5,3096.3,3.0]
[1732067635494,0.8216,3096.5,3096.4,0.0602795]
[1732067635956,0.01,3096.2,3095.6,0.3222]
[1732067636098,0.8216,3096.1,3095.4,0.3222]
[1732067636793,0.8216,3096.1,3095.5,0.0582737]
[1732067637493,0.8316,3096.0,3095.5,0.0582737]
[1732067637899,0.8316,3096.0,3095.7,3.0]
[1732067638096,0.01,3095.8,3095.6,0.0582737]
[1732067638299,0.8216,3095.7,3095.1,0.3222]
[1732067638753,0.8216,3095.7,3094.9,0.3222]
[1732067640796,0.01,3095.6,3094.6,0.3222]
[1732067641007,0.8216,3095.5,3094.6,0.8304547]
[1732067641207,0.02,3095.4,3094.6,0.8304547]
[1732067641426,0.8216,3095.3,3094.6,0.4205747]
[1732067641901,0.8216,3095.3,3093.4,0.61935685]
[1732067641902,0.8216,3095.3,3094.4,0.3222]
[1732067642410,0.8216,3095.1,3094.4,0.3222]
[1732067642597,0.8216,3095.1,3094.0,0.7766]
[1732067642800,0.8216,3095.1,3094.1,0.30533543]
[1732067643544,0.8216,3095.1,3094.2,0.05832994]
[1732067645043,0.8216,3095.1,3094.8,3.0]
[1732067645338,0.8216,3095.1,3094.1,0.30533543]
[1732067645556,0.8216,3095.1,3094.9,0.05832994]
[1732067645709,0.8216,3095.1,3094.8,3.0]
[1732067646110,0.8216,3095.1,3094.9,0.05832994]
[1732067646554,0.8216,3095.1,3094.8,3.0]
[1732067646748,0.8216,3095.1,3095.0,0.05832994]
[1732067647702,0.8216,3095.1,3094.8,3.0]
[1732067648106,0.8216,3095.1,3094.9,0.05832994]
[1732067648609,0.8216,3095.1,3095.0,0.05832994]
[1732067648945,0.8216,3095.1,3094.0,0.42454417]
[1732067649174,0.8216,3095.1,3094.8,3.0]
[1732067649684,0.8216,3095.1,3094.9,0.05846414]
[1732067649869,0.8216,3095.1,3094.0,0.42454417]
[1732067650174,0.8216,3095.1,3094.8,3.0]
[1732067650475,0.8216,3095.1,3094.0,0.7298796]
[1732067650637,0.8216,3095.1,3094.8,3.0]
[1732067650837,0.8216,3095.1,3094.0,0.7298796]
[1732067651053,0.8216,3095.1,3094.8,3.0]
[1732067651237,0.8216,3095.1,3094.0,0.7298796]
[1732067651432,0.8216,3095.1,3094.1,0.05846414]
[1732067652463,0.8216,3095.1,3094.8,3.0]
[1732067652648,0.7921,3095.6,3094.9,0.3]
[1732067652862,0.7921,3095.6,3095.0,0.05852602]
[1732067653034,0.7921,3095.6,3094.3,0.3222]
[1732067653240,0.7921,3095.6,3094.4,0.05852602]
[1732067653561,0.7921,3095.6,3094.5,0.3222]
[1732067653758,0.7921,3095.6,3094.9,3.0]
[1732067654071,0.7921,3095.6,3095.0,0.05852602]
[1732067654577,0.7921,3095.6,3095.0,3.05852602]
[1732067654776,0.7921,3095.6,3095.3,3.0]
[1732067654953,0.7921,3095.6,3095.0,0.44211862]
[1732067655137,0.7921,3095.6,3095.5,3.0]
[1732067655547,0.7921,3095.6,3095.1,0.05852602]
[1732067655548,0.7921,3095.6,3094.9,0.62753543]
[1732067655838,0.7921,3096.0,3095.5,3.0]
[1732067656068,0.7921,3096.0,3095.0,0.8722]
[1732067656069,0.01,3095.9,3095.0,0.8722]
[1732067656273,0.01,3095.9,3095.5,3.0]
[1732067656456,0.01,3095.9,3095.7,3.0]
[1732067656668,0.01,3095.9,3094.9,0.30533543]
[1732067656669,0.7921,3095.8,3094.9,0.30533543]
[1732067656857,0.7921,3095.8,3095.5,3.0]
[1732067657242,0.7921,3095.8,3095.6,0.05852602]
[1732067658092,0.7921,3095.8,3095.7,0.05852602]
[1732067658389,0.7921,3095.8,3095.5,3.0]
[1732067658585,0.7921,3095.8,3095.7,0.05852602]
[1732067658905,0.7921,3096.2,3095.8,3.0]
[1732067659245,0.7921,3096.2,3095.9,0.05846494]
[1732067660190,0.7921,3096.2,3096.0,3.0]
[1732067660549,0.7921,3096.2,3096.1,0.05836771]
[1732067661888,0.01,3096.0,3095.6,3.0]
[1732067662094,0.7921,3095.9,3095.7,0.05836932]
[1732067662299,0.7921,3095.9,3094.8,1.0996]
[1732067662469,0.7921,3095.9,3095.0,0.05837655]
[1732067664475,0.7921,3095.9,3095.6,3.0]
[1732067664702,0.7921,3095.9,3095.7,0.0583894]
[1732067664886,0.7921,3095.9,3095.6,3.0]
[1732067665088,0.7921,3095.9,3095.7,0.0583894]
[1732067665269,0.7921,3095.9,3094.9,0.72590708]
[1732067665464,0.7921,3095.9,3095.0,0.05838297]
[1732067665805,0.7921,3095.9,3095.0,0.3637184]
[1732067665968,0.7921,3095.9,3095.1,0.3222]
[1732067666168,0.7921,3095.9,3095.3,0.3222]
[1732067666397,0.7539,3096.1,3095.5,0.3222]
[1732067666766,0.7539,3096.1,3095.6,0.05837976]
[1732067667290,0.7639,3096.1,3095.6,0.05837976]
[1732067667713,0.7639,3096.1,3095.4,0.3222]
[1732067667887,0.7539,3095.9,3095.7,0.05837976]
[1732067668202,0.7539,3095.9,3095.0,0.30533543]
[1732067668203,0.7539,3095.9,3095.6,0.3222]
[1732067668422,0.7539,3095.9,3095.8,0.05838137]
[1732067668562,0.7539,3095.9,3095.6,3.3222]
[1732067668763,0.7539,3095.9,3095.8,0.05838699]
[1732067668985,0.7539,3095.9,3095.6,0.3222]
[1732067669197,0.7539,3095.9,3095.8,0.05838699]
[1732067669397,0.7539,3095.9,3095.1,0.99123354]
[1732067669908,0.7639,3095.6,3095.5,3.0]
[1732067670206,0.7639,3095.6,3095.2,0.05837331]